fUST/lending_fUST_20240904
["ID","MTS","AMOUNT","RATE_DAILY","PERIOD"]
[337155356,1725456764762,-500.0,0.00030684,2]
[337155357,1725456764772,-500.0,0.00030684,2]
[337155358,1725456764782,-500.0,0.00030684,2]
[337155359,1725456764791,-525.77,0.00030684,2]
[337155360,1725456764801,-500.0,0.00030684,2]
[337155361,1725456764810,-500.0,0.00030684,2]
[337155362,1725456764820,-500.0,0.00030684,2]
[337155363,1725456764829,-500.0,0.00030684,2]
[337155364,1725456764838,-500.0,0.00030684,2]
[337155365,1725456764847,-676.43,0.00030684,2]
[337155366,1725456764857,-632.09,0.00030684,2]
[337155367,1725456764866,-500.0,0.00030684,2]
[337155368,1725456764875,-245.90009033,0.00030684,2]
[337155369,1725456764884,-500.0,0.00030684,2]
[337155370,1725456764894,-500.0,0.00030684,2]
[337155371,1725456764904,-500.0,0.00030684,2]
[337155372,1725456764913,-500.0,0.00030684,2]
[337155373,1725456764923,-354.88,0.00030684,2]
[337155374,1725456764932,-500.0,0.00030684,2]
[337155375,1725456764941,-304.80368037,0.00030684,2]
[337155376,1725456764950,-500.0,0.00030684,2]
[337155377,1725456764960,-616.0,0.00030684,2]
[337155378,1725456764970,-504.86,0.00030684,2]
[337155379,1725456764980,-604.04,0.00030684,2]
[337155380,1725456764990,-500.0,0.00030684,2]
[337155381,1725456764999,-500.0,0.00030684,2]
[337155382,1725456765009,-500.0,0.00030684,2]
[337155383,1725456765019,-500.0,0.00030684,2]
[337155384,1725456765028,-1246.01,0.00030684,2]
[337155385,1725456765037,-697.13,0.00030684,2]
[337155386,1725456765047,-500.0,0.00030684,2]
[337155387,1725456765056,-854.77,0.00030684,2]
[337155388,1725456765065,-600.81,0.00030684,2]
[337155389,1725456765075,-500.0,0.00030684,2]
[337155390,1725456765084,-749.45,0.00030684,2]
[337155391,1725456765093,-500.0,0.00030684,2]
[337155392,1725456765102,-290.16386021,0.00030684,2]
[337155393,1725456765112,-500.0,0.00030684,2]
[337155394,1725456765121,-590.0,0.00030684,2]
[337155395,1725456765131,-500.0,0.00030684,2]
[337155396,1725456765140,-500.0,0.00030684,2]
[337155397,1725456765149,-500.0,0.00030684,2]
[337155398,1725456765159,-500.0,0.00030684,2]
[337155399,1725456765168,-500.0,0.00030684,2]
[337155400,1725456765177,-500.0,0.00030684,2]
[337155401,1725456765186,-500.0,0.00030684,2]
[337155402,1725456765195,-510.61,0.00030684,2]
[337155403,1725456765204,-500.0,0.00030684,2]
[337155404,1725456765214,-500.0,0.00030684,2]
[337155405,1725456765223,-500.0,0.00030684,2]
[337155406,1725456765307,-500.0,0.00030684,2]
[337155407,1725456765316,-500.0,0.00030684,2]
[337155408,1725456765325,-500.0,0.00030684,2]
[337155409,1725456765334,-500.0,0.00030684,2]
[337155410,1725456765344,-500.0,0.00030684,2]
[337155411,1725456765353,-500.0,0.00030684,2]
[337155412,1725456765363,-500.0,0.00030684,2]
[337155413,1725456765373,-500.0,0.00030684,2]
[337155414,1725456765383,-500.0,0.00030684,2]
[337155415,1725456765393,-887.25,0.00030684,2]
[337155416,1725456765402,-500.0,0.00030684,2]
[337155417,1725456765412,-510.5,0.00030684,2]
[337155418,1725456765422,-500.0,0.00030684,2]
[337155419,1725456765431,-758.9,0.00030684,2]
[337155420,1725456765441,-500.0,0.00030684,2]
[337155421,1725456765450,-500.0,0.00030684,2]
[337155422,1725456765460,-500.0,0.00030684,2]
[337155423,1725456765469,-500.0,0.00030684,2]
[337155424,1725456765480,-468.0,0.00030684,2]
[337155425,1725456765490,-500.0,0.00030684,2]
[337155426,1725456765499,-500.0,0.00030684,2]
[337155427,1725456765509,-500.0,0.00030684,2]
[337155428,1725456765519,-261.22304448,0.00030684,2]
[337155429,1725456765528,-500.0,0.00030684,2]
[337155430,1725456765537,-500.0,0.00030684,2]
[337155431,1725456765548,-500.0,0.00030684,2]
[337155432,1725456765558,-291.00572613,0.00030684,2]
[337155433,1725456765568,-500.0,0.00030684,2]
[337155434,1725456765578,-945.1,0.00030684,2]
[337155435,1725456765588,-500.0,0.00030684,2]
[337155436,1725456765597,-1029.49,0.00030684,2]
[337155437,1725456765607,-770.95,0.00030684,2]
[337155438,1725456765617,-500.0,0.00030684,2]
[337155439,1725456765630,-500.0,0.00030684,2]
[337155440,1725456765639,-500.0,0.00030684,2]
[337155441,1725456765648,-566.62,0.00030684,2]
[337155442,1725456765658,-657.65,0.00030684,2]
[337155443,1725456765668,-418.44,0.00030684,2]
[337155444,1725456765678,-500.0,0.00030684,2]
[337155445,1725456765687,-500.0,0.00030684,2]
[337155446,1725456765699,-500.0,0.00030684,2]
[337155447,1725456765708,-500.0,0.00030684,2]
[337155448,1725456765718,-500.0,0.00030684,2]
[337155449,1725456765727,-863.47,0.00030684,2]
[337155450,1725456765738,-190.29,0.00030684,2]
[337155451,1725456765747,-614.65,0.00030684,2]
[337155452,1725456765757,-500.0,0.00030684,2]
[337155453,1725456765766,-500.0,0.00030684,2]
[337155454,1725456765776,-500.0,0.00030684,2]
[337155455,1725456765786,-500.0,0.00030684,2]
[337155456,1725456765795,-500.0,0.00030684,2]
[337155457,1725456765805,-500.0,0.00030684,2]
[337155458,1725456765814,-500.0,0.00030684,2]
[337155459,1725456765824,-573.69,0.00030684,2]
[337155460,1725456765834,-487.00523598,0.00030684,2]
[337155461,1725456765844,-500.0,0.00030684,2]
[337155462,1725456765854,-397.29,0.00030684,2]
[337155463,1725456765864,-648.68,0.00030684,2]
[337155464,1725456765873,-500.0,0.00030684,2]
[337155465,1725456765883,-500.0,0.00030684,2]
[337155466,1725456765893,-500.0,0.00030684,2]
[337155467,1725456765903,-500.0,0.00030684,2]
[337155468,1725456765912,-701.69,0.00030684,2]
[337155469,1725456765921,-534.0314665,0.00030684,2]
[337155470,1725456765931,-500.0,0.00030684,2]
[337155471,1725456765940,-500.0,0.00030684,2]
[337155472,1725456765950,-500.0,0.00030684,2]
[337155473,1725456765959,-500.0,0.00030684,2]
[337155474,1725456765968,-173.23615015,0.00030684,2]
[337155475,1725456765977,-515.86702724,0.00030684,2]
[337155476,1725456765989,-500.0,0.00030684,2]
[337155477,1725456765999,-578.02,0.00030684,2]
[337155478,1725456766008,-500.0,0.00030684,2]
[337155479,1725456766018,-666.45,0.00030684,2]
[337155480,1725456766027,-500.0,0.00030684,2]
[337155481,1725456766036,-500.0,0.00030684,2]
[337155482,1725456766046,-623.51,0.00030684,2]
[337155483,1725456766056,-674.09,0.00030684,2]
[337155484,1725456766065,-574.79,0.00030684,2]
[337155485,1725456766074,-500.0,0.00030684,2]
[337155486,1725456766083,-500.0,0.00030684,2]
[337155487,1725456766093,-604.6,0.00030684,2]
[337155488,1725456766103,-500.0,0.00030684,2]
[337155489,1725456766112,-500.0,0.00030684,2]
[337155490,1725456766122,-500.0,0.00030684,2]
[337155491,1725456766131,-500.0,0.00030684,2]
[337155492,1725456766141,-500.0,0.00030684,2]
[337155493,1725456766151,-500.0,0.00030684,2]
[337155494,1725456766160,-263.06,0.00030684,2]
[337155495,1725456766170,-500.0,0.00030684,2]
[337155496,1725456766180,-500.0,0.00030684,2]
[337155497,1725456766189,-500.0,0.00030684,2]
[337155498,1725456766198,-500.0,0.00030684,2]
[337155499,1725456766208,-500.0,0.00030684,2]
[337155500,1725456766217,-500.0,0.00030684,2]
[337155501,1725456766227,-847.93,0.00030684,2]
[337155502,1725456766238,-500.0,0.00030684,2]
[337155503,1725456766248,-870.2,0.00030684,2]
[337155504,1725456766257,-513.65919098,0.00030684,2]
[337155505,1725456766266,-500.0,0.00030684,2]
[337155506,1725456766276,-1991.87,0.00030684,2]
[337155507,1725456766287,-500.0,0.00030684,2]
[337155508,1725456766297,-899.14,0.00030684,2]
[337155509,1725456766306,-613.99,0.00030684,2]
[337155510,1725456766317,-762.62,0.00030684,2]
[337155511,1725456766326,-500.0,0.00030684,2]
[337155512,1725456766336,-732.83,0.00030684,2]
[337155513,1725456766346,-500.0,0.00030684,2]
[337155514,1725456766355,-500.0,0.00030684,2]
[337155515,1725456766365,-500.0,0.00030684,2]
[337155516,1725456766375,-500.0,0.00030684,2]
[337155517,1725456766385,-500.0,0.00030684,2]
[337155518,1725456766394,-500.0,0.00030684,2]
[337155519,1725456766404,-2003.71,0.00030684,2]
[337155520,1725456766414,-1205.94,0.00030684,2]
[337155521,1725456766424,-500.0,0.00030684,2]
[337155522,1725456766434,-526.12,0.00030684,2]
[337155523,1725456766444,-500.0,0.00030684,2]
[337155524,1725456766454,-500.0,0.00030684,2]
[337155525,1725456766464,-500.0,0.00030684,2]
[337155526,1725456766473,-912.72,0.00030684,2]
[337155527,1725456766483,-500.0,0.00030684,2]
[337155528,1725456766492,-1228.0,0.00030684,2]
[337155529,1725456766502,-500.0,0.00030684,2]
[337155530,1725456766512,-500.0,0.00030684,2]
[337155531,1725456766522,-954.3,0.00030684,2]
[337155532,1725456766532,-1417.83,0.00030684,2]
[337155533,1725456766541,-1493.78,0.00030684,2]
[337155534,1725456766551,-591.49,0.00030684,2]
[337155535,1725456766560,-711.92,0.00030684,2]
[337155536,1725456766570,-1275.87,0.00030684,2]
[337155537,1725456766579,-2668.56,0.00030684,2]
[337155538,1725456766589,-1035.91,0.00030684,2]
[337155539,1725456766599,-1248.71,0.00030684,2]
[337155540,1725456766609,-967.05,0.00030684,2]
[337155541,1725456766620,-2693.21,0.00030684,2]
[337155542,1725456766631,-1338.09,0.00030684,2]
[337155543,1725456766641,-1107.58,0.00030684,2]
[337155544,1725456766651,-4246.41,0.00030684,2]
[337155545,1725456766663,-1107.23,0.00030684,2]
[337155546,1725456766672,-1365.5,0.00030684,2]
[337155547,1725456766681,-1532.75,0.00030684,2]
[337155548,1725456766692,-1527.6,0.00030684,2]
[337155549,1725456766701,-1066.88,0.00030684,2]
[337155550,1725456766714,-1660.38,0.00030684,2]
[337155551,1725456766723,-754.88,0.00030684,2]
[337155552,1725456766733,-1670.02,0.00030684,2]
[337155553,1725456766743,-770.2,0.00030684,2]
[337155554,1725456766753,-1102.43,0.00030684,2]
[337155555,1725456766763,-1127.67,0.00030684,2]
[337155556,1725456766773,-1244.81,0.00030684,2]
[337155557,1725456766783,-500.0,0.00030684,2]
[337155558,1725456766793,-1739.84,0.00030684,2]
[337155559,1725456766803,-500.0,0.00030684,2]
[337155560,1725456766812,-1099.51,0.00030684,2]
[337155561,1725456766822,-1841.76,0.00030684,2]
[337155562,1725456766831,-1011.14,0.00030684,2]
[337155563,1725456766840,-1093.15,0.00030684,2]
[337155564,1725456766850,-1756.8,0.00030684,2]
[337155565,1725456766860,-1799.48,0.00030684,2]
[337155566,1725456766869,-734.49,0.00030684,2]
[337155567,1725456766879,-500.0,0.00030684,2]
[337155568,1725456766888,-513.0,0.000308,2]
[337155569,1725456766900,-192.145128,0.00030908,2]
[337155570,1725456766909,-279.800464,0.00030908,2]
[337155571,1725456766919,-336.491161,0.00030908,2]
[337155572,1725456766928,-198.197436,0.00030908,2]
[337155573,1725456766938,-314.936021,0.00030908,2]
[337155574,1725456766948,-792.789742,0.00030908,2]
[337155575,1725456766957,-475.673845,0.00030908,2]
[337155576,1725456766966,-385.464683,0.00030908,2]
[337155577,1725456766975,-469.959228,0.00030908,2]
[337155578,1725456766986,-292.252881,0.00030908,2]
[337155579,1725456766996,-558.404439,0.00030908,2]
[337155580,1725456767005,-558.404439,0.00030908,2]
[337155581,1725456767015,-466.059004,0.00030908,2]
[337155582,1725456767024,-383.358184,0.00030908,2]
[337155583,1725456767033,-600.0,0.00030943,48]
[337155584,1725456767043,-500.0,0.00030948,2]
[337155585,1725456767052,-749.82,0.00030948,2]
[337155586,1725456767061,-500.0,0.00030948,2]
[337155587,1725456767071,-500.0,0.00030948,2]
[337155588,1725456767080,-2710.57,0.00030958,2]
[337155589,1725456767090,-1541.42,0.00030958,2]
[337155590,1725456767100,-3258.81,0.00030958,2]
[337155591,1725456767110,-441.98234686,0.00030958,2]
[337155592,1725456767120,-1264.51,0.00030958,2]
[337155593,1725456767130,-9158.35,0.00030958,2]
[337155594,1725456767140,-500.0,0.00030958,2]
[337155595,1725456767150,-584.36,0.00030958,2]
[337155596,1725456767160,-542.73,0.00030958,2]
[337155597,1725456767169,-500.0,0.00030958,2]
[337155598,1725456767180,-1675.33,0.00030958,2]
[337155599,1725456767189,-1458.75,0.00030958,2]
[337155600,1725456767199,-157.05,0.00030958,2]
[337155601,1725456767209,-552.11,0.00030958,2]
[337155602,1725456767219,-500.0,0.00030958,2]
[337155603,1725456767229,-500.0,0.00030958,2]
[337155604,1725456767249,-500.0,0.00030958,2]
[337155605,1725456767259,-400.52,0.00030958,2]
[337155606,1725456767269,-254.71,0.00030958,2]
[337155607,1725456767278,-500.0,0.00030958,2]
[337155608,1725456767288,-500.0,0.00030958,2]
[337155609,1725456767298,-500.0,0.00030958,2]
[337155610,1725456767309,-500.0,0.00030958,2]
[337155611,1725456767319,-500.0,0.00030958,2]
[337155612,1725456767330,-500.0,0.00030958,2]
[337155613,1725456767341,-500.0,0.00030958,2]
[337155614,1725456767352,-1197.66,0.00030958,2]
[337155615,1725456767363,-588.3,0.00030958,2]
[337155616,1725456767373,-600.56,0.00030958,2]
[337155617,1725456767383,-991.44,0.00030958,2]
[337155618,1725456767392,-500.0,0.00030958,2]
[337155619,1725456767403,-500.0,0.00030958,2]
[337155620,1725456767412,-308.0,0.00030958,2]
[337155621,1725456767423,-500.0,0.00030958,2]
[337155622,1725456767433,-500.0,0.00030958,2]
[337155623,1725456767442,-206.04,0.00030958,2]
[337155624,1725456767452,-500.0,0.00030958,2]
[337155625,1725456767462,-500.0,0.00030958,2]
[337155626,1725456767472,-500.0,0.00030958,2]
[337155627,1725456767482,-500.0,0.00030958,2]
[337155628,1725456767496,-500.0,0.00030958,2]
[337155629,1725456767505,-500.0,0.00030958,2]
[337155630,1725456767515,-500.0,0.00030958,2]
[337155631,1725456767525,-500.0,0.00030958,2]
[337155632,1725456767535,-500.0,0.00030958,2]
[337155633,1725456767544,-500.0,0.00030958,2]
[337155634,1725456767553,-525.77,0.00030958,2]
[337155635,1725456767562,-500.0,0.00030958,2]
[337155636,1725456767572,-500.0,0.00030958,2]
[337155637,1725456767581,-500.0,0.00030958,2]
[337155638,1725456767591,-500.0,0.00030958,2]
[337155639,1725456767600,-676.43,0.00030958,2]
[337155640,1725456767610,-632.09,0.00030958,2]
[337155641,1725456767620,-500.0,0.00030958,2]
[337155642,1725456767633,-500.0,0.00030958,2]
[337155643,1725456767643,-286.95881338,0.00030958,2]
[337155644,1725456767653,-500.0,0.00030958,2]
[337155645,1725456767663,-500.0,0.00030958,2]
[337155646,1725456767674,-500.0,0.00030958,2]
[337155647,1725456767684,-500.0,0.00030958,2]
[337155648,1725456767693,-616.0,0.00030958,2]
[337155649,1725456767705,-504.86,0.00030958,2]
[337155650,1725456767716,-604.04,0.00030958,2]
[337155651,1725456767726,-500.0,0.00030958,2]
[337155652,1725456767739,-500.0,0.00030958,2]
[337155653,1725456767749,-500.0,0.00030958,2]
[337155654,1725456767758,-500.0,0.00030958,2]
[337155655,1725456767768,-1246.01,0.00030958,2]
[337155656,1725456767777,-697.13,0.00030958,2]
[337155657,1725456767787,-500.0,0.00030958,2]
[337155658,1725456767796,-854.77,0.00030958,2]
[337155659,1725456767807,-600.81,0.00030958,2]
[337155660,1725456767816,-500.0,0.00030958,2]
[337155661,1725456767826,-749.45,0.00030958,2]
[337155662,1725456767836,-500.0,0.00030958,2]
[337155663,1725456767846,-500.0,0.00030958,2]
[337155664,1725456767856,-590.0,0.00030958,2]
[337155665,1725456767866,-500.0,0.00030958,2]
[337155666,1725456767876,-500.0,0.00030958,2]
[337155667,1725456767886,-500.0,0.00030958,2]
[337155668,1725456767896,-500.0,0.00030958,2]
[337155669,1725456767906,-500.0,0.00030958,2]
[337155670,1725456767915,-500.0,0.00030958,2]
[337155671,1725456767925,-517.40031182,0.00030958,2]
[337155672,1725456767934,-510.61,0.00030958,2]
[337155673,1725456767944,-500.0,0.00030958,2]
[337155674,1725456767953,-500.0,0.00030958,2]
[337155675,1725456767963,-500.0,0.00030958,2]
[337155676,1725456767972,-515.4642182,0.00030958,2]
[337155677,1725456767981,-500.0,0.00030958,2]
[337155678,1725456767991,-500.0,0.00030958,2]
[337155679,1725456768001,-338.53351285,0.00030958,2]
[337155680,1725456768011,-500.0,0.00030958,2]
[337155681,1725456768021,-500.0,0.00030958,2]
[337155682,1725456768031,-500.0,0.00030958,2]
[337155683,1725456768040,-500.0,0.00030958,2]
[337155684,1725456768050,-500.0,0.00030958,2]
[337155685,1725456768060,-887.25,0.00030958,2]
[337155686,1725456768070,-500.0,0.00030958,2]
[337155687,1725456768080,-500.0,0.00030958,2]
[337155688,1725456768090,-758.9,0.00030958,2]
[337155689,1725456768100,-433.12174579,0.00030958,2]
[337155690,1725456768109,-500.0,0.00030958,2]
[337155691,1725456768119,-500.0,0.00030958,2]
[337155692,1725456768128,-500.0,0.00030958,2]
[337155693,1725456768138,-517.22972131,0.00030958,2]
[337155694,1725456768148,-500.0,0.00030958,2]
[337155695,1725456768157,-500.0,0.00030958,2]
[337155696,1725456768167,-500.0,0.00030958,2]
[337155697,1725456768177,-605.3462609,0.00030958,2]
[337155698,1725456768187,-500.0,0.00030958,2]
[337155699,1725456768197,-500.0,0.00030958,2]
[337155700,1725456768207,-945.1,0.00030958,2]
[337155701,1725456768217,-500.0,0.00030958,2]
[337155702,1725456768226,-1029.49,0.00030958,2]
[337155703,1725456768238,-770.95,0.00030958,2]
[337155704,1725456768248,-500.0,0.00030958,2]
[337155705,1725456768258,-500.0,0.00030958,2]
[337155706,1725456768268,-643.47011385,0.00030958,2]
[337155707,1725456768278,-566.62,0.00030958,2]
[337155708,1725456768288,-657.65,0.00030958,2]
[337155709,1725456768299,-500.0,0.00030958,2]
[337155710,1725456768309,-500.0,0.00030958,2]
[337155711,1725456768319,-500.0,0.00030958,2]
[337155712,1725456768330,-500.0,0.00030958,2]
[337155713,1725456768340,-515.70559924,0.00030958,2]
[337155714,1725456768351,-863.47,0.00030958,2]
[337155715,1725456768361,-614.65,0.00030958,2]
[337155716,1725456768371,-500.0,0.00030958,2]
[337155717,1725456768382,-500.0,0.00030958,2]
[337155718,1725456768393,-500.0,0.00030958,2]
[337155719,1725456768403,-500.0,0.00030958,2]
[337155720,1725456768413,-231.18651368,0.00030958,2]
[337155721,1725456768422,-500.0,0.00030958,2]
[337155722,1725456768432,-500.0,0.00030958,2]
[337155723,1725456768442,-500.0,0.00030958,2]
[337155724,1725456768453,-648.68,0.00030958,2]
[337155725,1725456768464,-500.0,0.00030958,2]
[337155726,1725456768474,-500.0,0.00030958,2]
[337155727,1725456768649,-500.0,0.00030958,2]
[337155728,1725456768667,-367.12,0.00030958,2]
[337155729,1725456768677,-701.69,0.00030958,2]
[337155730,1725456768687,-500.0,0.00030958,2]
[337155731,1725456768698,-500.0,0.00030958,2]
[337155732,1725456768709,-560.96,0.00030958,2]
[337155733,1725456768721,-500.0,0.00030958,2]
[337155734,1725456768731,-500.0,0.00030958,2]
[337155735,1725456768746,-578.02,0.00030958,2]
[337155736,1725456768756,-500.0,0.00030958,2]
[337155737,1725456768766,-666.45,0.00030958,2]
[337155738,1725456768776,-500.0,0.00030958,2]
[337155739,1725456768786,-500.0,0.00030958,2]
[337155740,1725456768797,-674.09,0.00030958,2]
[337155741,1725456768806,-623.51,0.00030958,2]
[337155742,1725456768816,-574.79,0.00030958,2]
[337155743,1725456768825,-500.0,0.00030958,2]
[337155744,1725456768835,-500.0,0.00030958,2]
[337155745,1725456768845,-604.6,0.00030958,2]
[337155746,1725456768855,-500.0,0.00030958,2]
[337155747,1725456768865,-500.0,0.00030958,2]
[337155748,1725456768875,-500.0,0.00030958,2]
[337155749,1725456768885,-500.0,0.00030958,2]
[337155750,1725456768894,-500.0,0.00030958,2]
[337155751,1725456768904,-500.0,0.00030958,2]
[337155752,1725456768914,-500.0,0.00030958,2]
[337155753,1725456768924,-500.0,0.00030958,2]
[337155754,1725456768933,-500.0,0.00030958,2]
[337155755,1725456768943,-500.0,0.00030958,2]
[337155756,1725456768953,-500.0,0.00030958,2]
[337155757,1725456768963,-847.93,0.00030958,2]
[337155758,1725456768974,-870.2,0.00030958,2]
[337155759,1725456768987,-500.0,0.00030958,2]
[337155760,1725456768996,-1991.87,0.00030958,2]
[337155761,1725456769006,-500.0,0.00030958,2]
[337155762,1725456769016,-899.14,0.00030958,2]
[337155763,1725456769025,-613.99,0.00030958,2]
[337155764,1725456769035,-762.62,0.00030958,2]
[337155765,1725456769045,-500.0,0.00030958,2]
[337155766,1725456769056,-732.83,0.00030958,2]
[337155767,1725456769066,-500.0,0.00030958,2]
[337155768,1725456769076,-500.0,0.00030958,2]
[337155769,1725456769086,-515.4,0.00030958,2]
[337155770,1725456769096,-500.0,0.00030958,2]
[337155771,1725456769105,-500.0,0.00030958,2]
[337155772,1725456769115,-500.0,0.00030958,2]
[337155773,1725456769124,-2003.71,0.00030958,2]
[337155774,1725456769133,-1205.94,0.00030958,2]
[337155775,1725456769143,-277.17,0.00030958,2]
[337155776,1725456769153,-526.12,0.00030958,2]
[337155777,1725456769163,-277.17,0.00030958,2]
[337155778,1725456769172,-500.0,0.00030958,2]
[337155779,1725456769182,-500.0,0.00030958,2]
[337155780,1725456769193,-912.72,0.00030958,2]
[337155781,1725456769203,-500.0,0.00030958,2]
[337155782,1725456769213,-1228.0,0.00030958,2]
[337155783,1725456769222,-500.0,0.00030958,2]
[337155784,1725456769235,-500.0,0.00030958,2]
[337155785,1725456769244,-954.3,0.00030958,2]
[337155786,1725456769255,-1417.83,0.00030958,2]
[337155787,1725456769264,-1493.78,0.00030958,2]
[337155788,1725456769274,-591.49,0.00030958,2]
[337155789,1725456769283,-711.92,0.00030958,2]
[337155790,1725456769294,-1275.87,0.00030958,2]
[337155791,1725456769304,-2668.56,0.00030958,2]
[337155792,1725456769313,-1035.91,0.00030958,2]
[337155793,1725456769323,-1248.71,0.00030958,2]
[337155794,1725456769333,-967.05,0.00030958,2]
[337155795,1725456769342,-2693.21,0.00030958,2]
[337155796,1725456769352,-1338.09,0.00030958,2]
[337155797,1725456769361,-1107.58,0.00030958,2]
[337155798,1725456769370,-4246.41,0.00030958,2]
[337155799,1725456769380,-1107.23,0.00030958,2]
[337155800,1725456769389,-1365.5,0.00030958,2]
[337155801,1725456769399,-1532.75,0.00030958,2]
[337155802,1725456769409,-1527.6,0.00030958,2]
[337155803,1725456769418,-1066.88,0.00030958,2]
[337155804,1725456769428,-1660.38,0.00030958,2]
[337155805,1725456769437,-754.88,0.00030958,2]
[337155806,1725456769447,-1670.02,0.00030958,2]
[337155807,1725456769457,-770.2,0.00030958,2]
[337155808,1725456769467,-1102.43,0.00030958,2]
[337155809,1725456769476,-1127.67,0.00030958,2]
[337155810,1725456769488,-1244.81,0.00030958,2]
[337155811,1725456769498,-304.68,0.00030958,2]
[337155812,1725456769508,-1739.84,0.00030958,2]
[337155813,1725456769518,-500.0,0.00030958,2]
[337155814,1725456769527,-1099.51,0.00030958,2]
[337155815,1725456769537,-1841.76,0.00030958,2]
[337155816,1725456769546,-1011.14,0.00030958,2]
[337155817,1725456769556,-1093.15,0.00030958,2]
[337155818,1725456769566,-1756.8,0.00030958,2]
[337155819,1725456769576,-1799.48,0.00030958,2]
[337155820,1725456769585,-734.49,0.00030958,2]
[337155821,1725456769599,-334.48,0.00030958,2]
[337155822,1725456769608,-162.947401,0.00031036,2]
[337155823,1725456769618,-182.658051,0.00031036,2]
[337155824,1725456769630,-153.584468,0.00031036,2]
[337155825,1725456769639,-2500.0,0.00031189,5]
[337155826,1725456769649,-2500.0,0.00031214,3]
[337155827,1725456769658,-500.0,0.00031222,2]
[337155828,1725456769669,-749.82,0.00031222,2]
[337155829,1725456769678,-500.0,0.00031222,2]
[337155830,1725456769688,-500.0,0.00031222,2]
[337155831,1725456769697,-2500.0,0.00031223,3]
[337155832,1725456769708,-2500.0,0.00031223,3]
[337155833,1725456769719,-2710.57,0.00031232,2]
[337155834,1725456769729,-1541.42,0.00031232,2]
[337155835,1725456769740,-3258.81,0.00031232,2]
[337155836,1725456769749,-1264.51,0.00031232,2]
[337155837,1725456769759,-9158.35,0.00031232,2]
[337155838,1725456769768,-500.0,0.00031232,2]
[337155839,1725456769777,-584.36,0.00031232,2]
[337155840,1725456769787,-542.73,0.00031232,2]
[337155841,1725456769799,-500.0,0.00031232,2]
[337155842,1725456769807,-1675.33,0.00031232,2]
[337155843,1725456769816,-1458.75,0.00031232,2]
[337155844,1725456769825,-552.11,0.00031232,2]
[337155845,1725456769834,-488.54,0.00031232,2]
[337155846,1725456769843,-500.0,0.00031232,2]
[337155847,1725456769852,-500.0,0.00031232,2]
[337155848,1725456769861,-501.18,0.00031232,2]
[337155849,1725456769870,-205.26,0.00031232,2]
[337155850,1725456769879,-500.0,0.00031232,2]
[337155851,1725456769888,-500.0,0.00031232,2]
[337155852,1725456769897,-500.0,0.00031232,2]
[337155853,1725456769906,-500.0,0.00031232,2]
[337155854,1725456769915,-241.1,0.00031232,2]
[337155855,1725456769924,-1197.66,0.00031232,2]